fUSD/lending_fUSD_20260224
["ID","MTS","AMOUNT","RATE_DAILY","PERIOD"]
[406515214,1771896641902,-500.0,0.00013698,2]
[406515215,1771896641912,-500.0,0.00013698,2]
[406515216,1771896641921,-500.0,0.00013698,2]
[406515217,1771896641930,-500.0,0.00013698,2]
[406515218,1771896641940,-500.0,0.00013698,2]
[406515219,1771896641948,-500.0,0.00013698,2]
[406515220,1771896641958,-500.0,0.00013698,2]
[406515221,1771896641967,-500.0,0.00013698,2]
[406515222,1771896641977,-500.0,0.00013698,2]
[406515223,1771896641986,-500.0,0.00013698,2]
[406515224,1771896641996,-500.0,0.00013698,2]
[406515225,1771896642008,-508.37686852,0.00013698,2]
[406515226,1771896642018,-500.0,0.00013698,2]
[406515227,1771896642028,-500.0,0.00013698,2]
[406515228,1771896642039,-500.0,0.00013698,2]
[406515229,1771896642047,-678.41,0.00013698,2]
[406515230,1771896642056,-500.0,0.00013698,2]
[406515231,1771896642065,-678.41,0.00013698,2]
[406515232,1771896642075,-500.0,0.00013698,2]
[406515233,1771896642084,-678.41,0.00013698,2]
[406515234,1771896642094,-500.0,0.00013698,2]
[406515235,1771896642103,-678.41,0.00013698,2]
[406515236,1771896642113,-500.0,0.00013698,2]
[406515237,1771896642122,-678.41,0.00013698,2]
[406515238,1771896642131,-500.0,0.00013698,2]
[406515239,1771896642140,-678.41,0.00013698,2]
[406515240,1771896642150,-500.0,0.00013698,2]
[406515241,1771896642170,-678.41,0.00013698,2]
[406515242,1771896642180,-500.0,0.00013698,2]
[406515243,1771896642190,-678.41,0.00013698,2]
[406515244,1771896642199,-500.0,0.00013698,2]
[406515245,1771896642209,-678.41,0.00013698,2]
[406515246,1771896642220,-500.0,0.00013698,2]
[406515247,1771896642231,-678.41,0.00013698,2]
[406515248,1771896642242,-500.0,0.00013698,2]
[406515249,1771896642254,-678.41,0.00013698,2]
[406515250,1771896642265,-500.0,0.00013698,2]
[406515251,1771896642275,-678.41,0.00013698,2]
[406515252,1771896642285,-678.41,0.00013698,2]
[406515253,1771896642295,-678.41,0.00013698,2]
[406515254,1771896642305,-500.0,0.00013698,2]
[406515255,1771896642315,-500.0,0.00013698,2]
[406515256,1771896642325,-500.0,0.00013698,2]
[406515257,1771896642334,-500.0,0.00013698,2]
[406515258,1771896642344,-500.0,0.00013698,2]
[406515259,1771896642353,-500.0,0.00013698,2]
[406515260,1771896642363,-500.0,0.00013698,2]
[406515261,1771896642373,-500.0,0.00013698,2]
[406515262,1771896642382,-500.0,0.00013698,2]
[406515263,1771896642392,-500.0,0.00013698,2]
[406515264,1771896642402,-500.0,0.00013698,2]
[406515265,1771896642412,-500.0,0.00013698,2]
[406515266,1771896642422,-172.38998627,0.00013698,2]
[406515268,1771896642431,-500.0,0.00013698,2]
[406515269,1771896642441,-500.0,0.00013698,2]
[406515270,1771896642450,-500.0,0.00013698,2]
[406515271,1771896642459,-500.0,0.00013698,2]
[406515274,1771896642469,-500.0,0.00013698,2]
[406515277,1771896642479,-500.0,0.00013698,2]
[406515280,1771896642488,-500.0,0.00013698,2]
[406515282,1771896642497,-500.0,0.00013698,2]
[406515284,1771896642509,-500.0,0.00013698,2]
[406515285,1771896642518,-500.0,0.00013698,2]
[406515286,1771896642528,-500.0,0.00013698,2]
[406515287,1771896642538,-500.0,0.00013698,2]
[406515288,1771896642547,-500.0,0.00013698,2]
[406515289,1771896642556,-500.0,0.00013698,2]
[406515290,1771896642566,-709.77,0.00013698,2]
[406515291,1771896642576,-709.77,0.00013698,2]
[406515292,1771896642585,-709.77,0.00013698,2]
[406515293,1771896642595,-709.77,0.00013698,2]
[406515294,1771896642605,-709.77,0.00013698,2]
[406515295,1771896642614,-709.77,0.00013698,2]
[406515296,1771896642624,-709.77,0.00013698,2]
[406515297,1771896642633,-709.77,0.00013698,2]
[406515298,1771896642643,-709.77,0.00013698,2]
[406515299,1771896642652,-709.77,0.00013698,2]
[406515300,1771896642662,-709.77,0.00013698,2]
[406515301,1771896642672,-709.77,0.00013698,2]
[406515302,1771896642681,-709.77,0.00013698,2]
[406515303,1771896642691,-709.77,0.00013698,2]
[406515304,1771896642701,-738.57,0.00013698,2]
[406515306,1771896642711,-738.57,0.00013698,2]
[406515308,1771896642721,-738.57,0.00013698,2]
[406515310,1771896642730,-738.57,0.00013698,2]
[406515312,1771896642740,-738.57,0.00013698,2]
[406515314,1771896642752,-738.57,0.00013698,2]
[406515318,1771896642761,-738.57,0.00013698,2]
[406515320,1771896642771,-738.57,0.00013698,2]
[406515322,1771896642780,-738.57,0.00013698,2]
[406515324,1771896642790,-738.57,0.00013698,2]
[406515326,1771896642800,-738.57,0.00013698,2]
[406515328,1771896642809,-738.57,0.00013698,2]
[406515330,1771896642819,-738.57,0.00013698,2]
[406515332,1771896642828,-738.57,0.00013698,2]
[406515334,1771896642838,-500.0,0.00013698,2]
[406515336,1771896642847,-500.0,0.00013698,2]
[406515338,1771896642857,-500.0,0.00013698,2]
[406515340,1771896642866,-500.0,0.00013698,2]
[406515342,1771896642876,-500.0,0.00013698,2]
[406515343,1771896642886,-500.0,0.00013698,2]
[406515345,1771896642896,-500.0,0.00013698,2]
[406515347,1771896642906,-500.0,0.00013698,2]
[406515348,1771896642915,-500.0,0.00013698,2]
[406515351,1771896642925,-500.0,0.00013698,2]
[406515352,1771896642935,-500.0,0.00013698,2]
[406515354,1771896642946,-500.0,0.00013698,2]
[406515356,1771896642956,-500.0,0.00013698,2]
[406515358,1771896642966,-500.0,0.00013698,2]
[406515360,1771896642976,-9999.99,0.00013699,2]
[406515362,1771896642985,-963.48,0.000137,2]
[406515364,1771896642995,-963.48,0.000137,2]
[406515366,1771896643007,-963.48,0.000137,2]
[406515367,1771896643017,-963.48,0.000137,2]
[406515369,1771896643027,-963.48,0.000137,2]
[406515371,1771896643036,-500.0,0.00013723,2]
[406515372,1771896643046,-483.71280667,0.00013723,2]
[406515373,1771896643055,-500.0,0.00013723,2]
[406515374,1771896643064,-500.0,0.00013723,2]
[406515375,1771896643074,-500.0,0.00013723,2]
[406515376,1771896643084,-500.0,0.00013723,2]
[406515377,1771896643094,-500.0,0.00013723,2]
[406515378,1771896643104,-500.0,0.00013723,2]
[406515379,1771896643113,-678.41,0.00013723,2]
[406515380,1771896643124,-500.0,0.00013723,2]
[406515381,1771896643133,-709.77,0.00013723,2]
[406515382,1771896643143,-738.57,0.00013723,2]
[406515383,1771896643152,-500.0,0.00013723,2]
[406515384,1771896643162,-371.0,0.0001379,2]
[406515385,1771896643172,-190.0,0.00013817,2]
[406515386,1771896643182,-166.66,0.00013825,2]
[406515387,1771896643192,-500.0,0.0001385,2]
[406515388,1771896643202,-255.0,0.0001385,2]
[406515389,1771896643214,-1529.0,0.00013864,2]
[406515390,1771896643225,-181.0,0.00013891,2]
[406515391,1771896643235,-1886.0,0.00013919,2]
[406515392,1771896643245,-420.0,0.00013989,2]
[406515393,1771896643257,-442.0,0.00014005,2]
[406515394,1771896643267,-1680.0,0.00014028,2]
[406515395,1771896643277,-190.77686963,0.00014028,2]
[406515396,1771896643290,-250.0,0.00014028,2]
[406515397,1771896643299,-195.0,0.00014029,2]
[406515398,1771896643310,-195.0,0.00014029,2]
[406515399,1771896643320,-195.0,0.00014029,2]
[406515400,1771896643329,-195.0,0.00014029,2]
[406515401,1771896643338,-199.00687913,0.00014029,2]
[406515402,1771896643349,-2500.0,0.00014031,2]
[406515403,1771896643359,-2500.0,0.00014031,2]
[406515404,1771896643369,-2500.0,0.00014031,2]
[406515405,1771896643379,-2500.0,0.00014031,2]
[406515406,1771896643389,-2500.0,0.00014031,2]
[406515407,1771896643400,-300.0,0.00014031,2]
[406515408,1771896643410,-5065.39784592,0.00014031,2]
[406515409,1771896643420,-362.08661635,0.00014124,2]
[406515410,1771896643429,-1267.35484114,0.00014224,2]
[406515411,1771896643440,-166.66,0.0001424,2]
[406515412,1771896643450,-1268.98,0.00014349,2]
[406515413,1771896643460,-500.0,0.00014349,2]
[406515414,1771896643470,-10356.08385809,0.0001439,2]
[406515415,1771896643481,-482.61545862,0.00014504,2]
[406515416,1771896643492,-428.0,0.0001455,2]
[406515417,1771896643505,-151.0,0.00014634,2]
[406515418,1771896643520,-151.0,0.00014634,2]
[406515419,1771896643539,-151.0,0.00014634,2]
[406515420,1771896643549,-151.0,0.00014634,2]
[406515421,1771896643567,-151.0,0.00014634,2]
[406515422,1771896643587,-166.66,0.00014655,2]
[406515423,1771896643599,-221.43,0.00014821,2]
[406515424,1771896643609,-1845.2,0.00014853,2]
[406515425,1771896643619,-482.61545862,0.00014867,2]
[406515426,1771896643630,-176.09216214,0.000149,2]
[406515427,1771896643640,-1267.35484114,0.00014959,2]
[406515428,1771896643651,-250.0,0.00015,2]
[406515429,1771896643661,-2056.92644975,0.00015,2]
[406515430,1771896643670,-12619.57468609,0.00015,7]
[406515431,1771896643680,-8007.7851751,0.00015,2]
[406515432,1771896643690,-1600.0,0.00015022,2]
[406515433,1771896643700,-433.0,0.00015036,2]
[406515434,1771896643710,-513.0,0.00015101,2]
[406515435,1771896643720,-239794.82813943,0.0001512,2]
[406515436,1771896643729,-482.61545862,0.00015229,2]
[406515437,1771896643739,-1517.64,0.000153,2]
[406515438,1771896643748,-306.89505691,0.00015303,2]
[406515439,1771896643759,-1917.95774897,0.00015328,2]
[406515440,1771896643768,-587.0,0.00015346,2]
[406515441,1771896643778,-509.97336117,0.000154,2]
[406515442,1771896643787,-2351.0,0.00015431,2]
[406515443,1771896643797,-482.61545862,0.00015592,2]
[406515444,1771896643807,-1267.35484114,0.00015695,2]
[406515445,1771896643817,-2247.37992495,0.00015807,2]
[406515446,1771896643826,-482.61545862,0.00015954,2]
[406515447,1771896643836,-2051.53099245,0.00016,2]
[406515448,1771896643846,-419.15017495,0.00016,2]
[406515449,1771896643856,-9999.99,0.00016116,2]
[406515450,1771896643866,-250.0,0.00016196,2]
[406515451,1771896643876,-5000.00595085,0.000162,5]
[406515452,1771896643885,-482.61545862,0.00016317,2]
[406515453,1771896643895,-736.0,0.00016337,2]
[406515454,1771896643904,-200.0,0.0001634,2]
[406515455,1771896643914,-1267.35484114,0.0001643,2]
[406515456,1771896643924,-20000.0,0.00016438,2]
[406515457,1771896643933,-1600.0,0.00016524,2]
[406515458,1771896643943,-500.0,0.00016578,2]
[406515459,1771896643952,-361.79774232,0.000166,2]
[406515460,1771896643962,-482.61545862,0.0001668,2]
[406515461,1771896643971,-173.82651237,0.00016721,2]
[406515462,1771896643981,-160.0,0.00016721,2]
[406515463,1771896643990,-246.0,0.00016722,2]
[406515464,1771896644000,-246.0,0.00016761,2]
[406515465,1771896644011,-914.56105735,0.00016779,2]
[406515466,1771896644020,-246.0,0.00016813,2]
[406515467,1771896644032,-823.0,0.00016833,2]
[406515468,1771896644042,-246.0,0.00016835,2]
[406515469,1771896644051,-246.0,0.00016858,2]
[406515470,1771896644061,-3292.0,0.00016974,2]
[406515471,1771896644071,-300.0,0.00017,2]
[406515472,1771896644080,-667247.25809466,0.00017,2]
[406515473,1771896644090,-151.87388327,0.00017,2]
[406515474,1771896644100,-482.61545862,0.00017042,2]
[406515475,1771896644110,-246.0,0.00017088,2]
[406515476,1771896644119,-1267.35484114,0.00017165,2]
[406515477,1771896644128,-246.0,0.00017172,2]
[406515478,1771896644138,-246.0,0.00017374,2]
[406515479,1771896644147,-246.0,0.00017383,2]
[406515480,1771896644158,-246.0,0.00017394,2]
[406515481,1771896644167,-482.61545862,0.00017405,2]
[406515482,1771896644177,-246.0,0.00017453,2]
[406515483,1771896644187,-246.0,0.00017467,2]
[406515484,1771896644196,-168.0,0.00017538,2]
[406515485,1771896644206,-246.0,0.00017574,2]
[406515486,1771896644217,-246.0,0.00017613,2]
[406515487,1771896644228,-513.0,0.00017697,4]
[406515488,1771896644238,-784.94789718,0.000177,2]
[406515489,1771896644247,-403.0,0.000177,5]
[406515490,1771896644258,-246.0,0.00017729,2]
[406515491,1771896644268,-1252.0,0.0001774,2]
[406515492,1771896644278,-482.61545862,0.00017767,2]
[406515493,1771896644287,-1404.3040251,0.00017808,2]
[406515494,1771896644493,-1404.3040251,0.00017808,2]
[406515495,1771896644503,-1404.3040251,0.00017808,2]
[406515496,1771896644514,-1404.3040251,0.00017808,2]
[406515497,1771896644532,-1404.3040251,0.00017808,2]
[406515498,1771896644542,-1404.3040251,0.00017808,2]
[406515499,1771896644552,-1404.3040251,0.00017808,2]
[406515500,1771896644561,-1404.3040251,0.00017808,2]
[406515501,1771896644570,-1404.3040251,0.00017808,2]
[406515502,1771896644579,-1404.3040251,0.00017808,2]
[406515503,1771896644589,-1404.3040251,0.00017808,2]
[406515504,1771896644598,-1404.3040251,0.00017808,2]
[406515505,1771896644608,-1404.3040251,0.00017808,2]
[406515506,1771896644618,-1404.3040251,0.00017808,2]
[406515507,1771896644628,-1404.3040251,0.00017808,2]
[406515508,1771896644637,-1404.3040251,0.00017808,2]
[406515509,1771896644647,-1455.36962601,0.00017808,2]
[406515510,1771896644656,-1455.36962601,0.00017808,2]
[406515511,1771896644665,-1455.36962601,0.00017808,2]
[406515512,1771896644675,-1455.36962601,0.00017808,2]
[406515513,1771896644684,-1455.36962601,0.00017808,2]
[406515514,1771896644694,-1455.36962601,0.00017808,2]
[406515515,1771896644703,-1455.36962601,0.00017808,2]
[406515516,1771896644713,-1455.36962601,0.00017808,2]
[406515517,1771896644722,-1455.36962601,0.00017808,2]
[406515518,1771896644732,-1455.36962601,0.00017808,2]
[406515519,1771896644742,-800.0,0.00017808,2]
[406515520,1771896644753,-1004.93385763,0.0001786,2]
[406515521,1771896644763,-1267.35484114,0.000179,2]
[406515522,1771896644773,-1917.95774897,0.000179,2]
[406515523,1771896644782,-306.89505691,0.000179,2]
[406515524,1771896644792,-246.0,0.00017948,2]
[406515525,1771896644802,-246.0,0.00017958,2]
[406515526,1771896644811,-500.0,0.00017973,2]
[406515527,1771896644820,-500.08540525,0.00017973,2]
[406515528,1771896644830,-500.0,0.00017973,2]
[406515529,1771896644839,-500.0,0.00017973,2]
[406515530,1771896644848,-500.0,0.00017973,2]
[406515531,1771896644858,-500.0,0.00017973,2]
[406515532,1771896644867,-500.0,0.00017973,2]
[406515533,1771896644877,-500.0,0.00017973,2]
[406515534,1771896644887,-165.3317424,0.00017973,2]
[406515535,1771896644897,-166.94045127,0.00017973,2]
[406515536,1771896644907,-500.0,0.00017973,2]
[406515537,1771896644916,-500.0,0.00017973,2]
[406515538,1771896644926,-500.0,0.00017973,2]
[406515539,1771896644936,-500.0,0.00017973,2]
[406515540,1771896644946,-500.0,0.00017973,2]
[406515541,1771896644955,-572.00269459,0.00017973,2]
[406515542,1771896644965,-500.0,0.00017973,2]
[406515543,1771896644974,-500.0,0.00017973,2]
[406515544,1771896644983,-500.0,0.00017973,2]
[406515545,1771896644993,-500.0,0.00017973,2]
[406515546,1771896645004,-500.0,0.00017973,2]
[406515547,1771896645013,-500.54183681,0.00017973,2]
[406515548,1771896645023,-502.39671387,0.00017973,2]
[406515549,1771896645033,-500.0,0.00017973,2]
[406515550,1771896645043,-502.15928887,0.00017973,2]
[406515551,1771896645053,-500.0,0.00017973,2]
[406515552,1771896645062,-500.64938591,0.00017973,2]
[406515553,1771896645072,-239.8459294,0.00017973,2]
[406515554,1771896645081,-504.35563358,0.00017973,2]
[406515555,1771896645091,-500.20340125,0.00017973,2]
[406515556,1771896645101,-500.0,0.00017973,2]
[406515557,1771896645110,-384.29639944,0.00017973,2]
[406515558,1771896645120,-180.92845749,0.0001799,2]
[406515559,1771896645130,-246.0,0.00017993,2]
[406515560,1771896645139,-246.0,0.00017999,2]
[406515561,1771896645149,-300.0,0.00017999,2]
[406515562,1771896645158,-666.0,0.00017999,2]
[406515563,1771896645168,-2046465.95701989,0.00018,2]
[406515564,1771896645361,-1552.62334267,0.00018,2]
[406515565,1771896645372,-876.55182051,0.00018,2]
[406515566,1771896645383,-431.69598331,0.00018,2]
[406515567,1771896645394,-799.8506,0.00018,2]
[406515568,1771896645406,-1000.51193,0.00018,2]
[406515569,1771896645417,-534.74842781,0.00018,2]
[406515570,1771896645433,-1323.45921772,0.00018,2]
[406515571,1771896645447,-1167.46477553,0.00018,2]
[406515572,1771896645458,-327.70006443,0.00018,2]
[406515573,1771896645470,-14087.60567993,0.00018,2]
[406515574,1771896645482,-289.75893805,0.00018,2]
[406515575,1771896645497,-1164.20361154,0.00018,2]
[406515578,1771896645608,-333.26194966,0.00018,2]
[406515579,1771896645623,-288.472427,0.00018,2]
[406515580,1771896645634,-506.37642362,0.00018,2]
[406515581,1771896645644,-265.1286,0.00018,2]
[406515582,1771896645669,-169450.26088474,0.00018,2]
[406515583,1771896645681,-619.92054556,0.00018,2]
[406515584,1771896645691,-4744479.07091328,0.00018,2]
[406515585,1771896645702,-265.96,0.00018,2]
[406515586,1771896645713,-340.404,0.00018,2]
[406515587,1771896646188,-301.19090094,0.000169,2]
[406515588,1771896646197,-238.25426659,0.00018,2]
[406515589,1771896646210,-1387.47280955,0.00018,2]
[406515620,1771896647609,-11545.29610669,0.00018,2]
[406515621,1771896648029,-2251.2405884,0.00018,2]
[406515622,1771896648042,-63959.98766103,0.00018,2]
[406515623,1771896648286,-456.24499999,0.00018,2]
[406515628,1771896736972,500.0,0.000108,2]
[406515629,1771896737511,503.00974341,0.000108,2]
[406515630,1771896739953,165.54,0.00012655,30]
[406515631,1771896741126,851.56555211,0.000108,2]
[406515632,1771896741846,500.0,0.000108,2]
[406515633,1771896742374,500.0,0.000108,2]
[406515634,1771896742778,700.0,0.000108,2]
[406515635,1771896742905,500.0,0.000108,2]
[406515636,1771896743325,700.0,0.000108,2]
[406515637,1771896743473,500.0,0.000108,2]
[406515638,1771896744017,500.0,0.000108,2]
[406515639,1771896744322,500.0,0.000108,2]
[406515640,1771896744368,700.0,0.000108,2]
[406515641,1771896744493,500.0,0.000108,2]
[406515642,1771896744848,500.0,0.000108,2]
[406515643,1771896744879,700.0,0.000108,2]
[406515644,1771896745250,500.0,0.000108,2]
[406515645,1771896745317,700.0,0.000108,2]
[406515646,1771896745346,145.43470448,0.000108,2]
[406515647,1771896745368,354.56529552,0.000108,2]
[406515648,1771896745721,500.0,0.000108,2]
[406515649,1771896745797,700.0,0.000108,2]
[406515650,1771896745870,500.0,0.000108,2]
[406515651,1771896746223,500.0,0.000108,2]
[406515652,1771896746271,700.0,0.000108,2]
[406515653,1771896746332,500.0,0.000108,2]
[406515654,1771896746359,500.0,0.000108,2]
[406515655,1771896746769,700.0,0.000108,2]
[406515656,1771896746801,512.76060754,0.000108,2]
[406515657,1771896746837,500.0,0.000108,2]
[406515658,1771896746866,500.0,0.000108,2]
[406515659,1771896747280,500.0,0.000108,2]
[406515660,1771896747309,87.24939246,0.000108,2]
[406515661,1771896747332,612.75060754,0.000108,2]
[406515662,1771896747359,859.99109656,0.000108,2]
[406515663,1771896747819,500.0,0.000108,2]
[406515664,1771896747924,700.0,0.000108,2]
[406515665,1771896747958,1500.0,0.000108,2]
[406515666,1771896748308,500.0,0.000108,2]
[406515667,1771896748387,327.2682959,0.000108,2]
[406515668,1771896748410,372.7317041,0.000108,2]
[406515669,1771896748455,1500.0,0.000108,2]
[406515670,1771896748789,500.0,0.000108,2]
[406515671,1771896748843,500.0,0.000108,2]
[406515672,1771896748887,700.0,0.000108,2]
[406515673,1771896748932,1427.2782959,0.000108,2]
[406515674,1771896748955,72.7217041,0.000108,2]
[406515675,1771896749284,500.0,0.000108,2]
[406515676,1771896749356,500.0,0.000108,2]
[406515677,1771896749389,700.0,0.000108,2]
[406515678,1771896749427,1500.0,0.000108,2]
[406515679,1771896749696,532.0420997,0.000108,2]
[406515680,1771896749742,500.0,0.000108,2]
[406515681,1771896749978,500.0,0.000108,2]
[406515682,1771896750009,267.9679003,0.000108,2]
[406515683,1771896750030,232.86447423,0.000108,2]
[406515684,1771896750063,916.86189331,0.000108,2]
[406515685,1771896750093,1500.0,0.000108,2]
[406515686,1771896750303,799.99,0.000108,2]
[406515687,1771896750331,500.0,0.000108,2]
[406515688,1771896750420,1500.0,0.000108,2]
[406515689,1771896750808,500.0,0.000108,2]
[406515690,1771896750858,851.793829,0.000108,2]
[406515691,1771896751110,1071.21280384,0.000108,2]
[406515692,1771896751132,428.78719616,0.000108,2]
[406515693,1771896751163,500.0,0.000108,2]
[406515694,1771896751197,500.0,0.000108,2]
[406515695,1771896751309,500.0,0.000108,2]
[406515696,1771896751383,1500.0,0.000108,2]
[406515697,1771896751464,507.61476669,0.000108,2]
[406515698,1771896751672,500.0,0.000108,2]
[406515699,1771896751787,500.0,0.000108,2]
[406515700,1771896751828,713.78219389,0.000108,2]
[406515701,1771896751884,1500.0,0.000108,2]
[406515702,1771896752177,550.36054499,0.000108,2]
[406515703,1771896752311,500.0,0.000108,2]
[406515704,1771896752413,1500.0,0.000108,2]
[406515705,1771896752807,500.0,0.000108,2]
[406515706,1771896752878,1500.0,0.000108,2]
[406515707,1771896753294,500.0,0.000108,2]
[406515708,1771896753357,1500.0,0.000108,2]
[406515709,1771896753786,500.0,0.000108,2]
[406515710,1771896753817,735.86726112,0.000108,2]
[406515711,1771896753843,764.13273888,0.000108,2]
[406515712,1771896754275,524.23267642,0.000108,2]
[406515713,1771896754337,2351.39166006,0.000108,2]
[406515714,1771896754943,500.0,0.000108,2]
[406515715,1771896755426,500.0,0.000108,2]
[406515716,1771896755906,500.0,0.000108,2]
[406515717,1771896756366,500.0,0.000108,2]
[406515718,1771896757412,507.37309265,0.000108,2]
[406515719,1771896765421,500.0,0.00012157,2]
[406515720,1771896797148,-2638.374786,0.00012339,2]
[406515721,1771896797176,-2858.719,0.00012401,2]
[406515722,1771896797199,-237.534,0.00012401,2]
[406515723,1771896797221,-303.12277658,0.00012496,2]
[406515724,1771896797243,-150.0,0.00012553,2]
[406515725,1771896797266,-300.0,0.00012553,2]
[406515726,1771896797291,-2979.07598395,0.00012554,2]
[406515727,1771896797316,-23540.25211644,0.00012554,2]
[406515728,1771896797339,-261.01342768,0.00012554,2]
[406515729,1771896797363,-297.05,0.000126,2]
[406515730,1771896797391,-16678.0,0.0001263,2]
[406515731,1771896797413,-250.0,0.00012653,2]
[406515732,1771896797440,-3099506.85790935,0.00012654,2]
[406515733,1771896825302,337.0,0.00011821,2]
[406515734,1771896832233,5832.489,0.0001,2]
[406515735,1771896862990,180.84,0.00010109,2]
[406515737,1771896897674,-337.0,0.00012458,2]
[406515738,1771896897694,-916.35022247,0.00012553,2]
[406515739,1771896897719,-1587.96154543,0.00012554,2]
[406515740,1771896897741,-174.696726,0.00012642,2]
[406515741,1771896897762,-1200.0,0.00012652,2]
[406515742,1771896897787,-500.0,0.00012653,2]
[406515743,1771896897811,-500.0,0.00012653,2]
[406515744,1771896897833,-500.0,0.00012653,2]
[406515745,1771896897856,-500.0,0.00012653,2]
[406515746,1771896897878,-500.0,0.00012653,2]
[406515747,1771896897900,-500.0,0.00012653,2]
[406515748,1771896897922,-500.0,0.00012653,2]
[406515749,1771896897944,-500.0,0.00012653,2]
[406515750,1771896897967,-500.0,0.00012653,2]
[406515751,1771896897992,-500.0,0.00012653,2]
[406515752,1771896898014,-500.0,0.00012653,2]
[406515753,1771896898036,-500.0,0.00012653,2]
[406515754,1771896898058,-500.0,0.00012653,2]
[406515755,1771896898079,-500.0,0.00012653,2]
[406515756,1771896898101,-120983.9915061,0.00012654,2]
[406515758,1771897020282,1785.56524526,0.00012454,2]
[406515759,1771897020310,514.90038361,0.00012454,2]
[406515760,1771897043358,18341.0,0.00018101,120]
[406515761,1771897046621,500.0,0.000108,2]
[406515763,1771897047105,500.0,0.000108,2]
[406515764,1771897047585,500.0,0.000108,2]
[406515765,1771897047854,1261.8,0.0001218,2]
[406515766,1771897048049,500.0,0.000108,2]
[406515770,1771897196341,166.66,0.00011371,2]
[406515771,1771897196562,166.66,0.0001161,2]
[406515772,1771897196774,166.66,0.0001185,2]
[406515773,1771897196996,166.66,0.00012089,2]
[406515774,1771897205689,2810.38193012,0.00013,3]
[406515777,1771897251807,558.46,0.00011796,2]
[406515779,1771897281227,2358.81,0.00011833,2]
[406515780,1771897344988,653.71723476,0.000108,2]
[406515781,1771897366162,6253.13430766,0.000121,2]
[406515794,1771897417329,150.0,0.00011655,2]
[406515795,1771897438654,25.88845758,0.00011917,2]
[406515796,1771897438675,223.55285042,0.00011917,2]
[406515797,1771897482740,1000.0,0.00011655,2]
[406515799,1771897665545,10000.01,0.00011542,2]
[406515800,1771897665570,25196.96,0.00011542,2]
[406515801,1771897783237,159.188684,0.00011736,2]
[406515805,1771897831854,-5000.00113981,0.000121,2]
[406515806,1771897831909,-1318.04278018,0.000121,2]
[406515807,1771897831920,-203.05,0.000122,2]
[406515808,1771897831931,-170.58399175,0.000122,2]
[406515809,1771897831945,-79.41600825,0.000122,2]
[406515810,1771897831955,-300.0,0.000122,2]
[406515811,1771897831966,-203.76,0.00012201,2]
[406515812,1771897831977,-300.0,0.00012201,2]
[406515813,1771897831988,-300.0,0.00012201,2]
[406515814,1771897831998,-500.0,0.00012203,2]
[406515815,1771897832009,-6621.32,0.00012222,2]
[406515816,1771897832020,-300.0,0.00012239,2]